bitfinex/quotes_SOLUSD_20250728
["timestamp","ask_amount","ask_price","bid_price","bid_amount"]
[1753693898710,36.28,192.56,192.55,5.81052708]
[1753693899305,36.28,192.56,192.55,6.50052708]
[1753693899990,36.28,192.56,192.55,5.81052708]
[1753693901312,36.28,192.56,192.55,11.00398332]
[1753693901518,2.71018729,192.59,192.55,11.69398332]
[1753693901700,0.67,192.63,192.58,5.81052708]
[1753693902019,0.67,192.63,192.61,5.81052708]
[1753693902020,38.9895874,192.62,192.61,5.81052708]
[1753693902699,2.7095874,192.62,192.61,5.81052708]
[1753693902909,36.28,192.62,192.61,6.50052708]
[1753693903217,36.28,192.63,192.62,0.28432314]
[1753693903414,2.70885471,192.66,192.65,26.0]
[1753693903597,36.28,192.66,192.65,32.78485022]
[1753693903992,14.35408817,192.67,192.65,31.81052708]
[1753693904219,14.35408817,192.67,192.66,5.81052708]
[1753693907116,15.02408817,192.67,192.66,5.81052708]
[1753693907490,14.35408817,192.67,192.66,5.81052708]
[1753693909015,14.35408817,192.67,192.66,11.7010181]
[1753693909197,50.63408817,192.67,192.66,11.7010181]
[1753693909394,50.63408817,192.67,192.66,11.0010181]
[1753693910818,50.63408817,192.67,192.66,11.7010181]
[1753693911195,14.35408817,192.67,192.66,28.77002521]
[1753693911395,37.4,192.74,192.69,26.0]
[1753693911396,38.11,192.74,192.69,26.0]
[1753693911618,37.4,192.74,192.73,5.81052708]
[1753693911797,36.28,192.74,192.73,5.81052708]
[1753693914908,36.99,192.74,192.73,5.81052708]
[1753693916021,36.28,192.74,192.73,11.28345604]
[1753693916226,36.28,192.74,192.73,11.98345604]
[1753693916627,36.28,192.74,192.73,11.28345604]
[1753693917122,36.26,192.74,192.73,37.28345604]
[1753693920031,36.26,192.74,192.73,37.98345604]
[1753693920718,36.26,192.74,192.73,37.28345604]
[1753693921605,2.70734416,192.78,192.76,26.0]
[1753693921809,36.26,192.77,192.76,26.0]
[1753693922121,36.26,192.77,192.76,31.81052708]
[1753693922325,36.97,192.77,192.76,26.0]
[1753693922929,36.97,192.77,192.76,31.81052708]
[1753693924651,42.15752917,192.77,192.74,5.81052708]
[1753693924935,0.71,192.76,192.74,5.81052708]
[1753693925318,36.26,192.77,192.74,5.81052708]
[1753693925518,36.26,192.77,192.75,5.81052708]
[1753693926135,0.71,192.76,192.75,5.81052708]
[1753693931141,36.26,192.77,192.75,5.81052708]
[1753693931324,36.97,192.77,192.76,5.81052708]
[1753693931531,36.26,192.77,192.76,5.81052708]
[1753693932322,36.26,192.77,192.76,6.51052708]
[1753693932721,36.26,192.77,192.76,5.81052708]
[1753693934337,36.26,192.77,192.76,6.51052708]
[1753693935024,36.26,192.77,192.76,5.81052708]
[1753693938247,36.92,192.77,192.76,5.81052708]
[1753693940925,36.26,192.77,192.76,5.81052708]
[1753693942746,36.92,192.77,192.76,5.81052708]
[1753693942954,42.10752917,192.77,192.76,5.81052708]
[1753693943136,42.10752917,192.77,192.75,5.81052708]
[1753693943339,0.66,192.76,192.73,26.0]
[1753693943528,0.66,192.76,192.75,5.81052708]
[1753693943728,36.26,192.77,192.75,5.81052708]
[1753693943930,0.66,192.78,192.76,5.81052708]
[1753693944147,36.24,192.77,192.76,5.81052708]
[1753693944330,36.9,192.77,192.76,5.81052708]
[1753693945228,42.08752917,192.77,192.75,5.81052708]
[1753693945441,0.66,192.76,192.73,5.81052708]
[1753693946155,6.47052708,192.76,192.7,5.81052708]
[1753693946331,5.81052708,192.76,192.7,5.81052708]
[1753693946532,0.66,192.75,192.7,5.81052708]
[1753693946852,36.24,192.74,192.7,5.81052708]
[1753693947155,5.84860582,192.73,192.7,5.81052708]
[1753693947365,0.66,192.73,192.71,5.81052708]
[1753693947660,36.24,192.74,192.72,5.81052708]
[1753693947949,0.66,192.73,192.72,5.81052708]
[1753693948153,0.66,192.73,192.71,31.81052708]
[1753693948653,0.66,192.73,192.7,31.81052708]
[1753693948952,0.66,192.73,192.67,5.19018907]
[1753693948953,5.18914431,192.71,192.67,5.81052708]
[1753693949152,36.9,192.7,192.67,5.81052708]
[1753693949337,36.24,192.7,192.69,5.81052708]
[1753693950151,36.9,192.7,192.68,5.81052708]
[1753693951055,0.66,192.69,192.68,5.81052708]
[1753693951633,36.24,192.7,192.68,5.81052708]
[1753693951857,36.24,192.7,192.67,26.0]
[1753693952160,36.9,192.7,192.69,5.81052708]
[1753693952332,36.9,192.7,192.68,5.81052708]
[1753693955663,36.24,192.7,192.69,5.81052708]
[1753693956368,36.26,192.7,192.69,6.50052708]
[1753693956562,5.18726008,192.78,192.7,0.28432314]
[1753693956760,0.66,192.76,192.73,5.81052708]
[1753693956949,5.81052708,192.75,192.7,5.81052708]
[1753693957156,42.1084556,192.74,192.7,5.81052708]
[1753693957357,0.66,192.73,192.7,5.81052708]
[1753693958870,5.84862322,192.73,192.7,5.81052708]
[1753693959070,0.66,192.72,192.69,31.81052708]
[1753693959372,36.26,192.71,192.69,26.0]
[1753693959677,36.92,192.71,192.69,31.81052708]
[1753693960476,0.66,192.7,192.69,31.81052708]
[1753693961071,36.26,192.71,192.69,31.81052708]
[1753693961577,36.26,192.71,192.7,5.81052708]
[1753693962664,36.92,192.71,192.7,5.81052708]
[1753693964377,36.26,192.71,192.7,5.81052708]
[1753693964750,36.92,192.71,192.69,31.81052708]
[1753693967279,36.92,192.71,192.7,5.81052708]
[1753693968165,36.92,192.71,192.69,26.0]
[1753693968364,36.92,192.71,192.7,5.81052708]
[1753693970887,36.92,192.71,192.7,3.72709157]
[1753693971684,36.26,192.71,192.7,4.72141471]
[1753693971976,36.26,192.71,192.7,9.9108283]
[1753693972218,36.26,192.73,192.72,26.0]
[1753693972354,36.26,192.73,192.72,29.72709157]
[1753693972762,36.26,192.73,192.72,31.82124993]
[1753693973657,36.26,192.73,192.72,32.53124993]
[1753693973964,36.26,192.73,192.72,38.00444812]
[1753693974162,2.70759741,192.76,192.72,38.00444812]
[1753693974368,36.26,192.75,192.72,32.18319819]
[1753693974663,36.26,192.75,192.74,5.82124993]
[1753693976261,36.26,192.75,192.74,11.00958654]
[1753693977159,36.26,192.75,192.74,12.00390968]
[1753693977583,0.72,192.79,192.75,0.28432314]
[1753693977884,36.24,192.77,192.76,26.71]
[1753693978084,36.24,192.78,192.77,26.0]
[1753693978292,36.96,192.78,192.77,26.0]
[1753693978587,36.96,192.78,192.76,5.18778158]
[1753693978975,36.96,192.78,192.77,5.82124993]
[1753693979786,0.72,192.78,192.77,5.82124993]
[1753693980084,36.96,192.78,192.77,5.82124993]
[1753693980289,36.24,192.78,192.77,5.82124993]
[1753693982564,36.24,192.78,192.77,11.0087791]
[1753693984470,36.24,192.78,192.77,11.7187791]
[1753693984973,36.24,192.79,192.77,11.7187791]
[1753693985177,36.24,192.79,192.78,11.00851001]
[1753693987295,3.42679154,192.83,192.78,38.00283315]
[1753693987606,20.36847645,192.87,192.78,38.00283315]
[1753693987607,36.96,192.85,192.82,5.82124993]
[1753693987779,36.96,192.85,192.84,5.82124993]
[1753693988469,36.96,192.85,192.82,26.0]
[1753693988683,0.72,192.84,192.79,120.12124993]
[1753693989709,5.82124993,192.81,192.74,5.18833661]
[1753693989895,36.96,192.8,192.76,5.82124993]
[1753693990197,0.72,192.79,192.76,5.82124993]
[1753693990395,6.54124993,192.79,192.71,16.78468397]
[1753693990707,0.72,192.78,192.73,5.82124993]
[1753693990912,36.24,192.77,192.73,5.82124993]
[1753693991123,0.72,192.76,192.74,5.82124993]
[1753693992501,0.72,192.75,192.74,5.82124993]
[1753693993620,0.72,192.75,192.72,5.82124993]
[1753693993825,36.96,192.74,192.7,5.33153347]
[1753693994033,42.06124993,192.74,192.67,16.78468397]
[1753693994190,42.06124993,192.74,192.68,5.82124993]
[1753693994191,5.18860582,192.73,192.68,5.82124993]
[1753693994383,5.18860582,192.73,192.67,5.82124993]
[1753693994384,11.00985575,192.73,192.67,5.82124993]
[1753693994588,0.72,192.72,192.67,5.82124993]
[1753693994815,36.24,192.71,192.67,31.82124993]
[1753693995132,36.96,192.71,192.68,5.82124993]
[1753693995430,36.24,192.71,192.68,5.82124993]
[1753693995586,0.72,192.7,192.69,26.0]
[1753693995782,36.96,192.71,192.69,26.0]
[1753693996009,0.72,192.71,192.69,26.0]
[1753693996314,5.82124993,192.73,192.69,26.0]
[1753693996315,0.72,192.73,192.7,5.82124993]
[1753693996609,0.72,192.75,192.72,5.82124993]
[1753693996914,0.72,192.75,192.73,5.82124993]
[1753693997214,36.96,192.74,192.73,5.82124993]
[1753693999103,36.24,192.74,192.73,5.82124993]
[1753694000018,36.91,192.74,192.73,5.82124993]
[1753694001429,36.91,192.74,192.72,5.82124993]
[1753694002704,36.91,192.74,192.73,5.82124993]
[1753694003226,36.91,192.74,192.72,5.82124993]
[1753694003525,36.91,192.74,192.7,5.47366583]
[1753694003526,0.67,192.73,192.71,5.82124993]
[1753694004098,36.24,192.74,192.72,5.82124993]
[1753694004293,36.91,192.74,192.72,5.82124993]
[1753694006346,36.24,192.74,192.73,5.82124993]
[1753694007201,36.91,192.74,192.73,5.82124993]
[1753694008015,36.91,192.74,192.72,5.82124993]
[1753694010313,6.49124993,192.73,192.69,114.3]
[1753694010729,0.67,192.72,192.69,114.3]
[1753694010934,36.24,192.71,192.69,26.0]
[1753694011121,0.67,192.7,192.69,26.0]
[1753694011313,0.67,192.7,192.67,5.82124993]
[1753694011516,0.67,192.69,192.66,5.82124993]
[1753694011749,36.91,192.68,192.66,5.82124993]
[1753694012031,36.24,192.67,192.66,31.82124993]
[1753694013736,36.24,192.67,192.66,26.0]
[1753694013919,36.24,192.67,192.66,31.82124993]
[1753694014751,36.24,192.67,192.66,37.01174095]
[1753694017124,36.24,192.67,192.66,31.82124993]
[1753694017942,36.91,192.67,192.66,31.82124993]
[1753694018141,36.91,192.67,192.64,5.82124993]
[1753694018315,0.67,192.66,192.64,31.82124993]
[1753694019037,0.67,192.66,192.64,26.0]
[1753694019240,36.24,192.67,192.65,5.82124993]
[1753694019427,36.91,192.67,192.65,5.82124993]
[1753694020442,36.24,192.67,192.64,26.0]
[1753694020624,36.24,192.67,192.64,5.82124993]
[1753694020625,0.67,192.66,192.64,5.82124993]
[1753694020830,36.24,192.67,192.64,5.82124993]
[1753694021036,0.67,192.65,192.64,5.82124993]
[1753694021236,0.67,192.65,192.62,31.4758909]
[1753694021538,36.24,192.67,192.62,31.4758909]
[1753694021539,36.91,192.64,192.63,26.0]
[1753694023227,36.91,192.64,192.63,31.82124993]
[1753694025343,36.24,192.64,192.63,37.01254931]
[1753694026235,36.24,192.64,192.63,37.72254931]
[1753694027651,0.67,192.67,192.63,37.72254931]
[1753694027822,36.26,192.66,192.64,5.82124993]
[1753694028022,0.67,192.69,192.65,5.82124993]
[1753694028224,36.93,192.68,192.66,5.82124993]
[1753694029348,36.26,192.68,192.66,5.82124993]
[1753694029554,0.67,192.67,192.66,5.82124993]
[1753694030527,0.67,192.67,192.65,5.82124993]
[1753694030866,0.67,192.67,192.64,5.1910299]
[1753694031021,0.67,192.66,192.63,26.0]
[1753694031222,36.26,192.65,192.64,26.0]
[1753694031421,36.93,192.65,192.64,26.0]
[1753694032272,36.26,192.65,192.64,31.82124993]
[1753694033937,36.26,192.65,192.64,37.01227983]
[1753694034131,36.26,192.65,192.64,37.67227983]
[1753694034435,36.26,192.65,192.64,37.01227983]
[1753694035349,36.26,192.65,192.64,31.82124993]
[1753694035569,36.93,192.65,192.64,31.82124993]
[1753694035932,36.26,192.65,192.64,37.01227983]
[1753694041664,36.93,192.65,192.64,26.0]
[1753694043462,36.26,192.65,192.64,37.01227983]
[1753694044065,36.26,192.65,192.64,31.82124993]
[1753694044460,36.93,192.65,192.64,26.0]
[1753694045045,42.12078099,192.65,192.61,120.12124993]
[1753694045358,42.12078099,192.65,192.62,5.82124993]
[1753694045359,0.67,192.64,192.62,5.82124993]
[1753694045674,0.67,192.63,192.62,5.82124993]
[1753694047279,36.93,192.65,192.62,5.82124993]
[1753694047459,0.67,192.64,192.62,5.82124993]
[1753694047655,0.67,192.63,192.62,5.82124993]
[1753694048269,36.26,192.65,192.62,5.82124993]
[1753694048469,0.67,192.64,192.62,5.82124993]
[1753694050677,0.67,192.64,192.63,31.82124993]
[1753694050987,38.96909847,192.65,192.63,31.82124993]
[1753694051149,36.24,192.64,192.63,26.0]
[1753694051361,36.24,192.64,192.63,37.01254931]
[1753694054673,36.24,192.64,192.62,31.82124993]
[1753694054674,36.91,192.64,192.62,31.82124993]
[1753694054863,0.67,192.63,192.61,5.82124993]
[1753694055171,0.67,192.62,192.61,5.82124993]
[1753694055378,36.91,192.64,192.61,5.82124993]
[1753694055582,36.91,192.64,192.62,5.82124993]
[1753694056477,36.91,192.64,192.59,120.43662151]
[1753694056478,36.91,192.64,192.63,5.82124993]
[1753694058680,36.91,192.64,192.62,5.82124993]
[1753694058992,0.68,192.63,192.6,5.19205325]
[1753694059167,7.89992774,192.65,192.62,5.82124993]
[1753694059490,36.24,192.64,192.62,5.82124993]
[1753694059858,0.68,192.63,192.62,5.82124993]
[1753694060392,0.68,192.63,192.61,5.82124993]
[1753694060674,36.92,192.62,192.61,5.82124993]
[1753694062490,36.24,192.62,192.61,37.01308835]
[1753694063263,36.24,192.62,192.61,37.69308835]
[1753694063461,36.24,192.62,192.61,37.01308835]
[1753694064472,36.24,192.62,192.61,31.82124993]
[1753694064865,0.68,192.62,192.61,26.0]
[1753694065069,36.92,192.62,192.61,26.0]
[1753694065767,36.92,192.62,192.61,31.82124993]
[1753694069087,42.11168095,192.62,192.58,5.82124993]
[1753694069260,0.68,192.61,192.58,5.82124993]
[1753694071881,2.70973777,192.6,192.58,5.82124993]
[1753694072183,36.24,192.59,192.58,5.82124993]
[1753694074404,2.70973777,192.6,192.58,11.01389714]
[1753694074687,36.24,192.59,192.58,5.19264721]
[1753694074890,36.92,192.59,192.58,26.0]
[1753694075767,36.92,192.59,192.58,31.82124993]
[1753694076690,36.92,192.59,192.58,26.0]
[1753694078162,36.92,192.59,192.58,31.82124993]
[1753694080177,36.24,192.59,192.58,31.82124993]
[1753694082291,2.70973777,192.6,192.58,31.82124993]
[1753694082496,0.68,192.64,192.59,6.50124993]
[1753694082714,2.70922211,192.65,192.63,5.82124993]
[1753694082893,36.24,192.64,192.63,5.82124993]
[1753694083090,2.70922211,192.65,192.63,5.82124993]
[1753694083284,36.24,192.64,192.63,5.82124993]
[1753694083682,42.11119159,192.64,192.6,5.82124993]
[1753694083885,0.68,192.63,192.58,31.82124993]
[1753694084093,36.24,192.62,192.58,31.82124993]
[1753694084482,0.68,192.61,192.58,31.82124993]
[1753694084681,36.24,192.6,192.58,31.82124993]
[1753694085098,0.68,192.59,192.58,31.82124993]
[1753694085311,0.68,192.59,192.58,26.0]
[1753694087002,0.68,192.59,192.57,5.82124993]
[1753694087508,0.68,192.58,192.57,5.82124993]
[1753694087684,0.68,192.59,192.57,5.82124993]
[1753694088013,36.24,192.6,192.57,5.82124993]
[1753694088308,36.93,192.6,192.58,5.82124993]
[1753694089788,42.12211128,192.6,192.58,5.82124993]
[1753694090188,0.69,192.59,192.58,5.82124993]
[1753694090504,36.93,192.59,192.58,5.82124993]
[1753694090804,29.89310892,192.59,192.58,5.82124993]
[1753694092810,30.58310892,192.59,192.57,5.82124993]
[1753694093107,0.69,192.58,192.56,5.82124993]
[1753694093404,29.89310892,192.59,192.56,5.82124993]
[1753694093614,30.58310892,192.59,192.56,5.82124993]
[1753694093786,30.58310892,192.59,192.56,6.51124993]
[1753694093982,30.58310892,192.59,192.56,5.82124993]
[1753694094178,0.69,192.59,192.56,5.82124993]
[1753694094390,36.24,192.58,192.56,6.51124993]
[1753694094719,36.24,192.58,192.57,5.82124993]
[1753694096283,36.24,192.58,192.57,6.51124993]
[1753694096606,36.24,192.58,192.57,5.82124993]
[1753694100013,36.93,192.58,192.57,5.82124993]
[1753694100185,36.93,192.58,192.54,26.97432314]
[1753694100384,36.93,192.58,192.57,5.82124993]
[1753694100804,36.24,192.58,192.57,5.82124993]
[1753694101708,36.24,192.58,192.57,6.51124993]
[1753694102106,36.24,192.58,192.57,0.69]
[1753694102289,36.24,192.58,192.57,6.51124993]
[1753694102891,36.24,192.58,192.57,11.70416679]
[1753694103103,36.24,192.58,192.57,6.51124993]
[1753694103307,7.90169738,192.61,192.57,5.82124993]
[1753694103497,36.93,192.6,192.58,5.82124993]
[1753694104590,42.122141,192.6,192.58,5.82124993]
[1753694105388,0.69,192.59,192.58,5.82124993]
[1753694105989,5.88237758,192.59,192.54,26.97432314]
[1753694106188,5.88237758,192.59,192.56,5.82124993]
[1753694106189,36.93,192.58,192.56,5.82124993]
[1753694106891,6.51124993,192.57,192.51,5.82124993]
[1753694107238,36.24,192.58,192.52,5.82124993]
[1753694107239,36.93,192.56,192.52,5.82124993]
[1753694107389,0.69,192.55,192.52,6.51124993]
[1753694107585,36.24,192.54,192.52,6.51124993]
[1753694107815,0.69,192.55,192.52,6.51124993]
[1753694108017,36.24,192.54,192.52,6.51124993]
[1753694108322,36.24,192.54,192.52,5.82124993]
[1753694108626,36.93,192.54,192.52,5.82124993]
[1753694108925,36.24,192.54,192.51,26.0]
[1753694109129,36.24,192.54,192.45,16.78468397]
[1753694109130,5.82124993,192.52,192.45,88.3]
[1753694109420,5.82124993,192.52,192.44,0.69]
[1753694109421,36.24,192.51,192.46,5.82124993]
[1753694109589,36.24,192.51,192.47,5.82124993]
[1753694109790,0.69,192.5,192.47,5.82124993]
[1753694110340,5.19443866,192.52,192.46,0.69]
[1753694110341,36.24,192.49,192.48,0.69]
[1753694110628,36.24,192.49,192.48,5.82124993]
[1753694110802,36.24,192.49,192.48,6.51124993]
[1753694111600,36.24,192.49,192.48,5.82124993]
[1753694112013,36.93,192.49,192.46,31.19580942]
[1753694112210,36.24,192.49,192.46,26.0]
[1753694112407,36.24,192.49,192.48,5.82124993]
[1753694113909,36.24,192.49,192.48,6.51124993]
[1753694114108,36.24,192.49,192.48,5.88534497]
[1753694114405,0.69,192.56,192.51,26.0]
[1753694114614,36.24,192.55,192.52,0.69]
[1753694114854,36.24,192.54,192.51,26.0]
[1753694115125,36.24,192.54,192.51,26.69]
[1753694115311,0.69,192.53,192.51,26.0]
[1753694115519,0.69,192.53,192.49,2.1909]
[1753694115696,6.51124993,192.52,192.48,26.0]
[1753694115898,36.93,192.51,192.48,26.0]
[1753694116204,0.69,192.5,192.48,26.0]
[1753694117213,36.24,192.51,192.48,31.82124993]
[1753694117410,36.24,192.51,192.49,5.82124993]
[1753694117745,36.24,192.5,192.49,5.82124993]
[1753694117900,36.24,192.5,192.48,26.0]
[1753694118102,36.95,192.5,192.49,5.82124993]
[1753694118506,36.95,192.5,192.48,31.82124993]
[1753694120516,36.95,192.5,192.48,5.82124993]
[1753694120722,36.95,192.5,192.47,5.82124993]
[1753694120936,36.24,192.49,192.47,5.82124993]
[1753694121725,36.95,192.49,192.47,5.82124993]
[1753694122128,36.24,192.49,192.47,5.82124993]
[1753694122741,0.71,192.51,192.47,5.82124993]
[1753694122920,36.95,192.5,192.47,5.82124993]
[1753694124761,36.24,192.49,192.47,5.82124993]
[1753694124939,0.71,192.5,192.47,11.01679128]
[1753694125246,36.24,192.49,192.48,5.82124993]
[1753694127621,36.24,192.49,192.47,11.01681182]
[1753694127932,36.24,192.49,192.48,5.82124993]
[1753694128523,36.95,192.49,192.46,31.82124993]
[1753694128721,0.71,192.48,192.46,5.82124993]
[1753694129051,0.71,192.47,192.46,5.82124993]
[1753694129544,36.95,192.49,192.46,5.82124993]
[1753694129920,36.95,192.49,192.47,5.82124993]
[1753694130547,0.71,192.48,192.46,5.82124993]
[1753694131647,36.24,192.49,192.46,5.82124993]
[1753694131842,36.95,192.49,192.47,5.82124993]
[1753694132051,36.95,192.49,192.46,0.67]
[1753694132225,36.95,192.49,192.47,5.82124993]
[1753694132635,0.71,192.49,192.47,5.82124993]
[1753694132840,36.24,192.48,192.47,5.82124993]
[1753694133262,0.71,192.49,192.47,5.82124993]
[1753694133449,36.24,192.48,192.47,5.82124993]
[1753694133947,2.71119663,192.51,192.47,11.68686483]
[1753694134163,36.24,192.5,192.48,0.67]
[1753694134331,36.24,192.5,192.49,0.67]
[1753694135053,36.24,192.5,192.49,5.86507506]
[1753694135253,36.24,192.5,192.49,11.68632499]
[1753694135628,36.24,192.5,192.49,5.82124993]
[1753694136646,36.95,192.5,192.47,5.82124993]
[1753694136956,0.71,192.49,192.46,5.82124993]
[1753694137532,0.71,192.49,192.47,5.82124993]
[1753694138359,0.71,192.49,192.45,31.8661157]
[1753694138360,0.71,192.49,192.46,5.82124993]
[1753694139759,36.24,192.5,192.46,5.82124993]
[1753694139760,0.71,192.48,192.46,5.82124993]
[1753694140052,36.24,192.47,192.46,5.82124993]
[1753694140460,36.95,192.47,192.46,5.82124993]
[1753694140844,36.24,192.47,192.46,5.82124993]
[1753694142334,36.24,192.47,192.44,31.19639291]
[1753694142662,36.24,192.47,192.46,5.82124993]
[1753694143459,36.24,192.47,192.44,31.86639291]
[1753694143638,36.24,192.47,192.44,31.82124993]
[1753694143837,0.71,192.46,192.44,31.82124993]
[1753694144155,36.24,192.47,192.43,5.82124993]
[1753694144355,0.71,192.45,192.43,5.82124993]
[1753694144661,36.24,192.44,192.43,5.82124993]
[1753694146061,36.24,192.44,192.43,11.01794483]
[1753694147652,36.24,192.44,192.43,11.68794483]
[1753694151542,2.71153171,192.48,192.43,37.68794483]
[1753694151766,2.71153171,192.48,192.47,5.82124993]
[1753694151971,38.95153171,192.48,192.46,5.82124993]
[1753694152150,39.63153171,192.48,192.46,5.82124993]
[1753694152964,38.95153171,192.48,192.46,5.82124993]
[1753694153267,38.95153171,192.48,192.46,6.51124993]
[1753694153872,38.95153171,192.48,192.46,11.70695975]
[1753694154047,38.95153171,192.48,192.47,5.82124993]
[1753694154951,2.71153171,192.48,192.47,6.51124993]
[1753694155272,16.92944172,192.53,192.5,26.0]
[1753694155449,16.92944172,192.53,192.52,11.01551546]
[1753694155652,53.16944172,192.53,192.52,11.01551546]
[1753694156359,16.92944172,192.53,192.52,11.70551546]
[1753694156555,16.92944172,192.53,192.52,11.9898386]
[1753694158766,36.24,192.56,192.55,26.0]
[1753694158983,36.24,192.56,192.55,32.51124993]
[1753694159292,36.24,192.57,192.56,0.28432314]
[1753694159465,36.24,192.57,192.56,6.79557307]
[1753694160173,36.24,192.57,192.56,11.9887596]
[1753694160367,36.24,192.57,192.56,11.01443646]
[1753694160568,36.92,192.57,192.56,11.01443646]
[1753694160874,36.92,192.57,192.55,37.01464309]
[1753694161073,36.24,192.57,192.56,5.82124993]
[1753694161590,6.0519,192.68,192.56,5.82124993]
[1753694161591,0.68,192.64,192.59,26.0]
[1753694161765,0.68,192.66,192.63,5.82124993]
[1753694161960,2.70882395,192.66,192.64,5.82124993]
[1753694162275,2.70882395,192.66,192.61,5.82124993]
[1753694162276,36.92,192.65,192.61,5.82124993]
[1753694162584,0.68,192.64,192.61,5.82124993]
[1753694162890,0.68,192.63,192.61,5.82124993]
[1753694163077,0.68,192.63,192.62,5.82124993]
[1753694163266,36.94,192.63,192.62,5.82124993]
[1753694163464,36.26,192.63,192.62,5.82124993]
[1753694163876,36.26,192.63,192.62,6.51124993]
[1753694164076,36.26,192.63,192.62,11.70281882]
[1753694164291,3.38882395,192.66,192.62,11.70281882]
[1753694164487,2.70882395,192.66,192.65,5.82124993]
[1753694164693,38.96882395,192.66,192.65,5.82124993]
[1753694165385,38.96882395,192.66,192.65,11.01201037]
[1753694166092,36.26,192.66,192.65,11.01201037]
[1753694166475,36.26,192.66,192.65,11.70201037]
[1753694166908,36.26,192.66,192.65,11.01201037]
[1753694167270,36.26,192.66,192.65,11.70201037]
[1753694168589,2.70841741,192.69,192.68,26.0]
[1753694168793,17.68016777,192.75,192.69,0.28432314]
[1753694168980,17.68016777,192.75,192.74,5.82124993]
[1753694169184,53.96016777,192.75,192.74,5.82124993]
[1753694169574,53.96016777,192.75,192.74,11.00958654]
[1753694172814,53.96016777,192.75,192.74,11.69958654]
[1753694173121,2.70711819,192.78,192.74,11.69958654]
[1753694173330,36.26,192.76,192.74,5.18833661]
[1753694173509,36.26,192.76,192.75,0.69]
[1753694174516,36.26,192.76,192.75,11.69931737]
[1753694175893,36.26,192.76,192.75,11.98364051]
[1753694180491,36.26,192.76,192.75,11.29364051]
[1753694183512,36.93,192.76,192.75,5.82124993]
[1753694185416,36.93,192.76,192.75,11.00931737]
[1753694185917,36.93,192.76,192.75,5.82124993]
[1753694186723,36.93,192.76,192.75,11.00931737]
[1753694186911,36.26,192.76,192.75,11.00931737]
[1753694187627,36.26,192.76,192.75,5.82124993]
[1753694187818,36.93,192.76,192.75,5.82124993]
[1753694188698,42.11779829,192.76,192.74,5.82124993]
[1753694188921,0.67,192.75,192.73,5.82124993]
[1753694189124,0.67,192.75,192.69,5.18945085]
[1753694189125,0.67,192.75,192.72,5.82124993]
[1753694189731,0.67,192.75,192.73,5.82124993]
[1753694189908,0.67,192.75,192.74,5.82124993]
[1753694190097,36.89,192.75,192.74,5.82124993]
[1753694190527,36.89,192.75,192.72,5.18874429]
[1753694190528,36.89,192.75,192.71,26.0]
[1753694190713,36.22,192.75,192.71,5.82124993]
[1753694190901,0.67,192.74,192.7,5.82124993]
[1753694191102,6.49124993,192.74,192.68,5.82124993]
[1753694191302,5.82124993,192.72,192.65,6.73729624]
[1753694191499,36.91,192.71,192.66,31.82124993]
[1753694191727,0.67,192.7,192.66,5.82124993]
[1753694192108,5.85958235,192.7,192.66,5.82124993]
[1753694192322,0.67,192.69,192.66,5.82124993]
[1753694192829,0.67,192.69,192.65,5.82124993]
[1753694193036,0.67,192.68,192.66,5.82124993]
[1753694193213,36.22,192.67,192.66,31.82124993]
[1753694193413,36.22,192.67,192.66,5.82124993]
[1753694193638,36.22,192.67,192.66,31.82124993]
[1753694193937,36.22,192.67,192.66,32.48124993]
[1753694195128,36.22,192.67,192.66,31.82124993]